[Event "Open Nuevo Centro. Jornada 1"]
[Site "Chess.com"]
[Date "2020.06.19"]
[Round "9"]
[White "Cin� Asensio, Luca "]
[Black "Maestre Soler, Sergio"]
[Result "0-1"]
[WhiteElo "499"]
[BlackElo "891"]
[TimeControl "180+2"]
[EndTime "12:10:37 PDT"]
[Termination "Victoria de Sergiete2011 por jaque mate"]

1. e4 {[%clk 0:03:01.9]} 1... e5 {[%clk 0:03:00]} 2. Bc4 {[%clk 0:03:02.2]} 2...
Nf6 {[%clk 0:02:56.6]} 3. d3 {[%clk 0:03:01.8]} 3... Nc6 {[%clk 0:02:56.7]} 4.
Nf3 {[%clk 0:03:01.3]} 4... Bb4+ {[%clk 0:02:54.7]} 5. Bd2 {[%clk 0:03:00.7]}
5... Bc5 {[%clk 0:02:51.1]} 6. Ng5 {[%clk 0:02:59.8]} 6... O-O {[%clk
0:02:42.8]} 7. Nxf7 {[%clk 0:02:58.6]} 7... Rxf7 {[%clk 0:02:43.6]} 8. Bxf7+
{[%clk 0:02:58.5]} 8... Kxf7 {[%clk 0:02:44.5]} 9. O-O {[%clk 0:02:59]} 9... Nb4
{[%clk 0:02:44.4]} 10. Bxb4 {[%clk 0:02:59.6]} 10... Bxb4 {[%clk 0:02:45]} 11.
Nc3 {[%clk 0:03:01]} 11... d6 {[%clk 0:02:43.8]} 12. a3 {[%clk 0:03:01]} 12...
Bc5 {[%clk 0:02:43.6]} 13. Na4 {[%clk 0:03:00.5]} 13... Bb6 {[%clk 0:02:38.4]}
14. Nxb6 {[%clk 0:03:00]} 14... cxb6 {[%clk 0:02:39.2]} 15. Qf3 {[%clk
0:02:59.6]} 15... Bd7 {[%clk 0:02:30.5]} 16. c4 {[%clk 0:02:58.1]} 16... Kg8
{[%clk 0:02:31.1]} 17. Qg3 {[%clk 0:02:52.3]} 17... Bg4 {[%clk 0:02:29.2]} 18.
h3 {[%clk 0:02:51.5]} 18... Bd7 {[%clk 0:02:27.6]} 19. Qh2 {[%clk 0:02:43.2]}
19... b5 {[%clk 0:02:28.3]} 20. g4 {[%clk 0:02:43.1]} 20... bxc4 {[%clk
0:02:29]} 21. dxc4 {[%clk 0:02:42.5]} 21... Nxe4 {[%clk 0:02:29.6]} 22. h4
{[%clk 0:02:41.6]} 22... Nd2 {[%clk 0:02:26.9]} 23. Rfd1 {[%clk 0:02:38.8]}
23... Nf3+ {[%clk 0:02:22.8]} 24. Kg2 {[%clk 0:02:35.9]} 24... Nxh2 {[%clk
0:02:23.5]} 25. Kxh2 {[%clk 0:02:37.7]} 25... Bxg4 {[%clk 0:02:24.4]} 26. Kg3
{[%clk 0:02:37.3]} 26... Bxd1 {[%clk 0:02:25.1]} 27. Rxd1 {[%clk 0:02:37]} 27...
d5 {[%clk 0:02:25.5]} 28. cxd5 {[%clk 0:02:37.6]} 28... Qf8 {[%clk 0:02:25.3]}
29. Kg4 {[%clk 0:02:33.9]} 29... Qf6 {[%clk 0:02:21]} 30. Kh5 {[%clk 0:02:31.8]}
30... Rf8 {[%clk 0:02:20.9]} 31. Kg4 {[%clk 0:02:31.6]} 31... Qf4+ {[%clk
0:02:20.5]} 32. Kh3 {[%clk 0:02:32]} 32... Qf3+ {[%clk 0:02:18.9]} 33. Kh2
{[%clk 0:02:31.8]} 33... Qxd1 {[%clk 0:02:20]} 34. Kg2 {[%clk 0:02:30.2]} 34...
Qd2 {[%clk 0:02:19.9]} 35. Kg3 {[%clk 0:02:30.4]} 35... Qxb2 {[%clk 0:02:21]}
36. Kg4 {[%clk 0:02:29.4]} 36... Qxa3 {[%clk 0:02:22.2]} 37. Kh5 {[%clk
0:02:29.4]} 37... Qf3+ {[%clk 0:02:21.7]} 38. Kg5 {[%clk 0:02:28.2]} 38... Qxf2
{[%clk 0:02:22.8]} 39. Kh5 {[%clk 0:02:27.3]} 39... Qf5# {[%clk 0:02:23.3]} 0

[Event "Open Nuevo Centro. Jornada 1"]
[Site "Chess.com"]
[Date "2020.06.19"]
[Round "9"]
[White "Romero Barkouk, Rayan "]
[Black "Saiz Sapena, Veronica"]
[Result "0-1"]
[WhiteElo "1176"]
[BlackElo "1559"]
[TimeControl "180+2"]
[EndTime "12:11:12 PDT"]
[Termination "Victoria de Titina1 por abandono"]

1. d4 {[%clk 0:03:01.9]} 1... d5 {[%clk 0:03:00]} 2. Nf3 {[%clk 0:02:39.1]} 2...
Bg4 {[%clk 0:02:56.8]} 3. Nc3 {[%clk 0:02:37.5]} 3... Nf6 {[%clk 0:02:56.1]} 4.
Bg5 {[%clk 0:02:35.9]} 4... e6 {[%clk 0:02:52]} 5. Bxf6 {[%clk 0:02:31.8]} 5...
Qxf6 {[%clk 0:02:51.5]} 6. e3 {[%clk 0:02:28.4]} 6... Bb4 {[%clk 0:02:51.1]} 7.
a3 {[%clk 0:02:26.4]} 7... Bxc3+ {[%clk 0:02:50.4]} 8. bxc3 {[%clk 0:02:25]}
8... O-O {[%clk 0:02:51.6]} 9. Bd3 {[%clk 0:02:23.9]} 9... b6 {[%clk 0:02:48.5]}
10. O-O {[%clk 0:02:15]} 10... Nd7 {[%clk 0:02:49.1]} 11. Be2 {[%clk 0:02:12.6]}
11... c5 {[%clk 0:02:48]} 12. h3 {[%clk 0:02:10.6]} 12... Bh5 {[%clk 0:02:47]}
13. Nh2 {[%clk 0:02:05.3]} 13... Bxe2 {[%clk 0:02:46.9]} 14. Qxe2 {[%clk
0:02:05.3]} 14... Rac8 {[%clk 0:02:46.1]} 15. Nf3 {[%clk 0:02:04.6]} 15... e5
{[%clk 0:02:41.3]} 16. dxe5 {[%clk 0:02:04]} 16... Nxe5 {[%clk 0:02:41.6]} 17.
Nxe5 {[%clk 0:02:04.5]} 17... Qxe5 {[%clk 0:02:42.2]} 18. c4 {[%clk 0:02:03.5]}
18... d4 {[%clk 0:02:40.7]} 19. Rfe1 {[%clk 0:01:59.4]} 19... dxe3 {[%clk
0:02:38.9]} 20. Qxe3 {[%clk 0:01:57.7]} 20... Qxe3 {[%clk 0:02:37.7]} 21. Rxe3
{[%clk 0:01:57.6]} 21... Rc7 {[%clk 0:02:38.2]} 22. Rae1 {[%clk 0:01:51.6]}
22... g6 {[%clk 0:02:38]} 23. Kh2 {[%clk 0:01:46.3]} 23... h5 {[%clk 0:02:37.7]}
24. a4 {[%clk 0:01:42.8]} 24... Kg7 {[%clk 0:02:38.1]} 25. a5 {[%clk 0:01:37.7]}
25... bxa5 {[%clk 0:02:36.2]} 26. Ra3 {[%clk 0:01:37.7]} 26... Rd8 {[%clk
0:02:33.6]} 27. Rxa5 {[%clk 0:01:35.3]} 27... Rd2 {[%clk 0:02:33.9]} 28. c3
{[%clk 0:01:32.7]} 28... Rxf2 {[%clk 0:02:33.4]} 29. Rea1 {[%clk 0:01:27.4]}
29... Rc2 {[%clk 0:02:32.4]} 30. Rxa7 {[%clk 0:01:26.3]} 30... Rxa7 {[%clk
0:02:32.2]} 31. Rxa7 {[%clk 0:01:26.4]} 31... Rxc3 {[%clk 0:02:33.2]} 32. Ra4
{[%clk 0:01:26.6]} 32... Kf6 {[%clk 0:02:33.1]} 33. Kg1 {[%clk 0:01:21.2]} 33...
Ke5 {[%clk 0:02:33.9]} 34. Kf2 {[%clk 0:01:20.6]} 34... Kd4 {[%clk 0:02:34.5]}
0

[Event "Open Nuevo Centro. Jornada 1"]
[Site "Chess.com"]
[Date "2020.06.19"]
[Round "9"]
[White "Sanchez Saez, Francisco"]
[Black "Kovacevic, Slobodan"]
[Result "1-0"]
[WhiteElo "2286"]
[BlackElo "2053"]
[TimeControl "180+2"]
[EndTime "12:11:23 PDT"]
[Termination "Victoria de Pacman1995 por abandono"]

1. e4 {[%clk 0:03:01]} 1... c5 {[%clk 0:02:57.8]} 2. d4 {[%clk 0:03:01]} 2...
cxd4 {[%clk 0:02:57.4]} 3. c3 {[%clk 0:03:01.9]} 3... dxc3 {[%clk 0:02:56.7]} 4.
Nxc3 {[%clk 0:03:02.9]} 4... d6 {[%clk 0:02:55.1]} 5. Nf3 {[%clk 0:03:03.7]}
5... e6 {[%clk 0:02:54.6]} 6. Bc4 {[%clk 0:03:04]} 6... Nf6 {[%clk 0:02:52.4]}
7. O-O {[%clk 0:03:01.6]} 7... Be7 {[%clk 0:02:51]} 8. Qe2 {[%clk 0:02:59.4]}
8... O-O {[%clk 0:02:49.4]} 9. Rd1 {[%clk 0:02:59.6]} 9... Nbd7 {[%clk 0:02:45]}
10. Bf4 {[%clk 0:02:34.8]} 10... a6 {[%clk 0:02:39.8]} 11. Bxd6 {[%clk
0:02:29.7]} 11... Bxd6 {[%clk 0:02:37.2]} 12. Rxd6 {[%clk 0:02:31.6]} 12... Qc7
{[%clk 0:02:35.7]} 13. Rad1 {[%clk 0:02:18.6]} 13... b5 {[%clk 0:02:33.1]} 14.
Bb3 {[%clk 0:02:05.9]} 14... Nc5 {[%clk 0:02:30.8]} 15. Bc2 {[%clk 0:02:06.8]}
15... b4 {[%clk 0:02:25.5]} 16. e5 {[%clk 0:02:02.5]} 16... bxc3 {[%clk
0:02:19.4]} 17. exf6 {[%clk 0:02:02.1]} 17... g6 {[%clk 0:02:17.9]} 18. Qe3
{[%clk 0:01:55.6]} 18... Nd7 {[%clk 0:00:32.9]} 19. Rxd7 {[%clk 0:01:55.1]}
19... Bxd7 {[%clk 0:00:30.9]} 20. Qh6 {[%clk 0:01:54.4]} 1

[Event "Open Nuevo Centro. Jornada 1"]
[Site "Chess.com"]
[Date "2020.06.19"]
[Round "9"]
[White "Torres Biosca, Roberto"]
[Black "Fern�ndez Mart�n, Berta"]
[Result "1-0"]
[WhiteElo "658"]
[BlackElo "589"]
[TimeControl "180+2"]
[EndTime "12:11:24 PDT"]
[Termination "Victoria de rotolo12 por tiempo"]

1. e4 {[%clk 0:03:01.7]} 1... d5 {[%clk 0:02:59]} 2. exd5 {[%clk 0:03:01.7]}
2... Nf6 {[%clk 0:02:57.8]} 3. Bb5+ {[%clk 0:02:58.2]} 3... c6 {[%clk
0:02:36.8]} 4. dxc6 {[%clk 0:02:58.5]} 4... Nxc6 {[%clk 0:02:34.7]} 5. Bxc6+
{[%clk 0:02:58.6]} 5... bxc6 {[%clk 0:02:35.1]} 6. Qf3 {[%clk 0:02:53.4]} 6...
Qd6 {[%clk 0:02:10.9]} 7. d3 {[%clk 0:02:48]} 7... e5 {[%clk 0:02:11.6]} 8. Nc3
{[%clk 0:02:38.8]} 8... Be6 {[%clk 0:02:09.9]} 9. d4 {[%clk 0:02:40]} 9... Rc8
{[%clk 0:01:54.3]} 10. dxe5 {[%clk 0:02:37.5]} 10... Qxe5+ {[%clk 0:01:50.7]}
11. Kf1 {[%clk 0:02:39.4]} 11... Bc4+ {[%clk 0:01:43.5]} 12. Qe2 {[%clk
0:02:25.5]} 12... Bxe2+ {[%clk 0:01:30.4]} 13. Ncxe2 {[%clk 0:02:25]} 13... Bc5
{[%clk 0:01:21.6]} 14. Bf4 {[%clk 0:02:21.9]} 14... Qxb2 {[%clk 0:01:02.7]} 15.
Rc1 {[%clk 0:02:19.8]} 15... O-O {[%clk 0:00:56.2]} 16. Bd2 {[%clk 0:02:13.3]}
16... Rfd8 {[%clk 0:00:32.3]} 17. Bc3 {[%clk 0:02:13.1]} 1

[Event "Open Nuevo Centro. Jornada 1"]
[Site "Chess.com"]
[Date "2020.06.19"]
[Round "9"]
[White "Elenkov Olmo, Ivan"]
[Black "Lupu, Alexandru Mihai"]
[Result "0-1"]
[WhiteElo "812"]
[BlackElo "1008"]
[TimeControl "180+2"]
[EndTime "12:11:35 PDT"]
[Termination "Victoria de KeenYoyo por abandono"]

1. e4 {[%clk 0:03:01.9]} 1... e5 {[%clk 0:02:58.3]} 2. Nf3 {[%clk 0:02:58.7]}
2... Nc6 {[%clk 0:02:58.3]} 3. Bc4 {[%clk 0:02:57]} 3... Nf6 {[%clk 0:02:56.8]}
4. Ng5 {[%clk 0:02:53.6]} 4... d5 {[%clk 0:02:53.1]} 5. Bxd5 {[%clk 0:02:49.7]}
5... Nxd5 {[%clk 0:02:53.1]} 6. exd5 {[%clk 0:02:40.6]} 6... Qxd5 {[%clk
0:02:51.3]} 7. Nc3 {[%clk 0:02:33.5]} 7... Qd8 {[%clk 0:02:49.6]} 8. d3 {[%clk
0:02:31.1]} 8... h6 {[%clk 0:02:42.8]} 9. Nf3 {[%clk 0:02:28.3]} 9... Bd6 {[%clk
0:02:40.9]} 10. O-O {[%clk 0:02:26.1]} 10... O-O {[%clk 0:02:40.8]} 11. Be3
{[%clk 0:02:20.7]} 11... Re8 {[%clk 0:02:37.2]} 12. b3 {[%clk 0:01:07.7]} 12...
Re7 {[%clk 0:02:35.5]} 13. Qe2 {[%clk 0:00:58.5]} 13... Qe8 {[%clk 0:02:35.3]}
14. Rad1 {[%clk 0:00:52.4]} 14... Bf5 {[%clk 0:02:30.8]} 15. Nh4 {[%clk
0:00:50.3]} 15... Bh7 {[%clk 0:02:19]} 16. Nd5 {[%clk 0:00:48]} 16... Rd7 {[%clk
0:02:02.5]} 17. c4 {[%clk 0:00:38.8]} 17... Nd4 {[%clk 0:02:00.2]} 18. Bxd4
{[%clk 0:00:20.6]} 18... exd4 {[%clk 0:01:56.6]} 19. g3 {[%clk 0:00:16.7]} 19...
Qxe2 {[%clk 0:01:54]} 0

[Event "Open Nuevo Centro. Jornada 1"]
[Site "Chess.com"]
[Date "2020.06.19"]
[Round "9"]
[White "G�mez Alonso, �scar"]
[Black "Gimenez Sanchis, Jose Antonio"]
[Result "1-0"]
[WhiteElo "1738"]
[BlackElo "1420"]
[TimeControl "180+2"]
[EndTime "12:11:41 PDT"]
[Termination "Victoria de osgo78 por abandono"]

1. d4 {[%clk 0:03:01.9]} 1... d5 {[%clk 0:02:59]} 2. c4 {[%clk 0:03:02.8]} 2...
Nf6 {[%clk 0:03:00]} 3. Nc3 {[%clk 0:03:03.2]} 3... e6 {[%clk 0:03:00]} 4. cxd5
{[%clk 0:03:03.8]} 4... exd5 {[%clk 0:03:00.6]} 5. Nf3 {[%clk 0:03:05]} 5... Be7
{[%clk 0:02:58]} 6. Bg5 {[%clk 0:03:05.8]} 6... Bf5 {[%clk 0:02:55.7]} 7. e3
{[%clk 0:03:06.8]} 7... c6 {[%clk 0:02:56.5]} 8. Be2 {[%clk 0:03:02.9]} 8... O-O
{[%clk 0:02:56.7]} 9. O-O {[%clk 0:03:03.9]} 9... Nbd7 {[%clk 0:02:55.7]} 10. a3
{[%clk 0:03:05]} 10... h6 {[%clk 0:02:53]} 11. Bf4 {[%clk 0:03:05.4]} 11... Re8
{[%clk 0:02:49]} 12. Ne5 {[%clk 0:03:06]} 12... Nxe5 {[%clk 0:02:47.9]} 13. Bxe5
{[%clk 0:03:07.5]} 13... Nd7 {[%clk 0:02:46.2]} 14. Bg3 {[%clk 0:03:08.4]} 14...
Nf6 {[%clk 0:02:45.8]} 15. b4 {[%clk 0:03:08.2]} 15... Bd6 {[%clk 0:02:46.5]}
16. Qb3 {[%clk 0:03:05.9]} 16... Bxg3 {[%clk 0:02:42.9]} 17. hxg3 {[%clk
0:03:07.8]} 17... Ne4 {[%clk 0:02:36]} 18. Nxe4 {[%clk 0:03:08.6]} 18... Bxe4
{[%clk 0:02:36.5]} 19. a4 {[%clk 0:03:08.7]} 19... a6 {[%clk 0:02:36.4]} 20.
Rac1 {[%clk 0:03:06.3]} 20... Rc8 {[%clk 0:02:35.7]} 21. Rc3 {[%clk 0:03:06.2]}
21... Qf6 {[%clk 0:02:23.6]} 22. Rfc1 {[%clk 0:02:51.3]} 22... Re6 {[%clk
0:02:12]} 23. Bg4 {[%clk 0:02:43.1]} 23... Bf5 {[%clk 0:02:07.4]} 24. Bxf5
{[%clk 0:02:42.7]} 24... Qxf5 {[%clk 0:02:08.1]} 25. b5 {[%clk 0:02:42.3]} 25...
axb5 {[%clk 0:02:06.6]} 26. axb5 {[%clk 0:02:43]} 26... Rf6 {[%clk 0:01:50.1]}
27. Qb2 {[%clk 0:02:42.2]} 27... Qe4 {[%clk 0:01:40.2]} 28. Qc2 {[%clk 0:02:42]}
28... Qxc2 {[%clk 0:01:40.5]} 29. R1xc2 {[%clk 0:02:42.6]} 29... Re6 {[%clk
0:01:39]} 30. g4 {[%clk 0:02:38.3]} 30... Kf8 {[%clk 0:01:38.8]} 31. g3 {[%clk
0:02:38.1]} 31... Ke7 {[%clk 0:01:36.3]} 32. bxc6 {[%clk 0:02:38.1]} 32... Rexc6
{[%clk 0:01:33.7]} 33. Rxc6 {[%clk 0:02:38.7]} 33... Rxc6 {[%clk 0:01:34.3]} 34.
Rb2 {[%clk 0:02:38.5]} 34... b6 {[%clk 0:01:33.2]} 35. Rb5 {[%clk 0:02:38.4]}
35... Ke6 {[%clk 0:01:33.3]} 36. Kg2 {[%clk 0:02:39.5]} 36... g6 {[%clk
0:01:33]} 37. Kf3 {[%clk 0:02:39.8]} 37... f5 {[%clk 0:01:33.1]} 38. gxf5+
{[%clk 0:02:40.2]} 38... gxf5 {[%clk 0:01:33.5]} 39. g4 {[%clk 0:02:41]} 39...
fxg4+ {[%clk 0:01:33.8]} 40. Kxg4 {[%clk 0:02:42.9]} 40... Kf6 {[%clk
0:01:32.2]} 41. Rxd5 {[%clk 0:02:42.7]} 41... Rc2 {[%clk 0:01:29.9]} 42. Kf3
{[%clk 0:02:43.4]} 42... Ke6 {[%clk 0:01:28.2]} 43. Rb5 {[%clk 0:02:43.7]} 43...
h5 {[%clk 0:01:17.1]} 44. Rxb6+ {[%clk 0:02:43.4]} 44... Kd7 {[%clk 0:01:11.7]}
45. Rh6 {[%clk 0:02:43.8]} 1

[Event "Open Nuevo Centro. Jornada 1"]
[Site "Chess.com"]
[Date "2020.06.19"]
[Round "9"]
[White "M�ndez Gim�nez , N�stor Emmanuel"]
[Black "Mart�nez Cuenca, Jose Andr�s"]
[Result "0-1"]
[WhiteElo "1126"]
[BlackElo "1073"]
[TimeControl "180+2"]
[EndTime "12:12:01 PDT"]
[Termination "Victoria de JoseAndres2008 por jaque mate"]

1. e4 {[%clk 0:03:00.7]} 1... c5 {[%clk 0:02:51.2]} 2. Nf3 {[%clk 0:03:00.9]}
2... g6 {[%clk 0:02:47.7]} 3. d4 {[%clk 0:03:01.4]} 3... cxd4 {[%clk 0:02:46.2]}
4. Qxd4 {[%clk 0:03:02]} 4... Nf6 {[%clk 0:02:45.3]} 5. Bg5 {[%clk 0:03:00.9]}
5... Bg7 {[%clk 0:02:38.6]} 6. Bxf6 {[%clk 0:03:00.1]} 6... Bxf6 {[%clk
0:02:35.4]} 7. e5 {[%clk 0:03:00.8]} 7... Nc6 {[%clk 0:02:33.6]} 8. exf6 {[%clk
0:02:54.8]} 8... Nxd4 {[%clk 0:02:30.9]} 9. Nxd4 {[%clk 0:02:55.7]} 9... exf6
{[%clk 0:02:26.4]} 10. Be2 {[%clk 0:02:56]} 10... O-O {[%clk 0:02:25.4]} 11. O-O
{[%clk 0:02:55.2]} 11... Qb6 {[%clk 0:02:17.3]} 12. Nb3 {[%clk 0:02:51.5]} 12...
d6 {[%clk 0:02:12.6]} 13. Nc3 {[%clk 0:02:51.7]} 13... Be6 {[%clk 0:02:07.8]}
14. Na4 {[%clk 0:02:49.3]} 14... Qb4 {[%clk 0:02:00.4]} 15. Nc3 {[%clk
0:02:43.2]} 15... Bxb3 {[%clk 0:01:55.1]} 16. axb3 {[%clk 0:02:43.5]} 16... Qf4
{[%clk 0:01:43.7]} 17. Nd5 {[%clk 0:02:42.9]} 17... Qe5 {[%clk 0:01:38]} 18. Bc4
{[%clk 0:02:41]} 18... Qxb2 {[%clk 0:01:30.9]} 19. Rab1 {[%clk 0:02:35.4]} 19...
Qxc2 {[%clk 0:01:27.9]} 20. Nxf6+ {[%clk 0:02:34.9]} 20... Kg7 {[%clk
0:01:21.7]} 21. Rfc1 {[%clk 0:02:34.7]} 21... Qf5 {[%clk 0:01:07.2]} 22. Nd5
{[%clk 0:02:29.1]} 22... Rac8 {[%clk 0:00:58.5]} 23. Ne3 {[%clk 0:02:23.6]}
23... Qf6 {[%clk 0:00:45.7]} 24. Ng4 {[%clk 0:02:19.9]} 24... Qg5 {[%clk
0:00:40.6]} 25. Ne3 {[%clk 0:02:15]} 25... b5 {[%clk 0:00:30.1]} 26. Bxb5 {[%clk
0:02:10.7]} 26... Rxc1+ {[%clk 0:00:29]} 27. Rxc1 {[%clk 0:02:09.2]} 27... d5
{[%clk 0:00:29]} 28. Bc6 {[%clk 0:02:08.6]} 28... d4 {[%clk 0:00:27.5]} 29. Nd5
{[%clk 0:02:09.1]} 29... Qxc1# {[%clk 0:00:25.4]} 0

[Event "Open Nuevo Centro. Jornada 1"]
[Site "Chess.com"]
[Date "2020.06.19"]
[Round "9"]
[White "Galiana Ferrer, Oscar"]
[Black "Juan Alos, Sergio"]
[Result "1-0"]
[WhiteElo "1004"]
[BlackElo "995"]
[TimeControl "180+2"]
[EndTime "12:12:16 PDT"]
[Termination "Victoria de CavalldeFoc2 por abandono"]

1. e4 {[%clk 0:03:01.9]} 1... c6 {[%clk 0:00:13.5]} 2. Nc3 {[%clk 0:02:58.7]}
2... d5 {[%clk 0:00:15.4]} 3. exd5 {[%clk 0:02:58.5]} 3... Bd7 {[%clk
0:00:16.4]} 4. dxc6 {[%clk 0:02:57.8]} 4... Nxc6 {[%clk 0:00:18.3]} 5. d4 {[%clk
0:02:58.5]} 5... Nf6 {[%clk 0:00:19.7]} 6. Be3 {[%clk 0:02:59.3]} 6... e5 {[%clk
0:00:20.9]} 7. dxe5 {[%clk 0:02:59.3]} 7... Nxe5 {[%clk 0:00:22.8]} 8. Bd3
{[%clk 0:02:58.3]} 8... Nxd3+ {[%clk 0:00:21.9]} 9. Qxd3 {[%clk 0:02:58.9]} 9...
Bb4 {[%clk 0:00:23.8]} 10. Qd1 {[%clk 0:02:56.4]} 10... Bxc3+ {[%clk 0:00:24.6]}
11. bxc3 {[%clk 0:02:57.3]} 11... Qa5 {[%clk 0:00:25.4]} 12. Nf3 {[%clk
0:02:55.4]} 12... Qxc3+ {[%clk 0:00:24.9]} 13. Nd2 {[%clk 0:02:48.4]} 13... Nd5
{[%clk 0:00:22.9]} 14. O-O {[%clk 0:02:45.9]} 14... Nxe3 {[%clk 0:00:23.7]} 15.
fxe3 {[%clk 0:02:46.4]} 15... O-O {[%clk 0:00:25]} 16. Ne4 {[%clk 0:02:43.7]}
16... Qxe3+ {[%clk 0:00:24.8]} 17. Kh1 {[%clk 0:02:41.7]} 17... Bb5 {[%clk
0:00:19.9]} 18. Re1 {[%clk 0:02:34.3]} 18... Qf4 {[%clk 0:00:19.6]} 19. g3
{[%clk 0:02:28.3]} 19... Qh6 {[%clk 0:00:17.2]} 20. Qd5 {[%clk 0:02:25.3]} 20...
a6 {[%clk 0:00:15.3]} 21. Qxb7 {[%clk 0:02:23]} 21... Rfe8 {[%clk 0:00:13.1]}
22. Qd5 {[%clk 0:02:21.6]} 22... Rac8 {[%clk 0:00:11.7]} 23. c3 {[%clk
0:02:17.6]} 23... Bc6 {[%clk 0:00:12.4]} 24. Qd4 {[%clk 0:02:11]} 24... Rcd8
{[%clk 0:00:13]} 25. Qb4 {[%clk 0:02:05.8]} 25... Bxe4+ {[%clk 0:00:11.5]} 26.
Rxe4 {[%clk 0:02:04.2]} 26... Rxe4 {[%clk 0:00:13.4]} 27. Qxe4 {[%clk
0:02:04.6]} 27... Qc6 {[%clk 0:00:02.5]} 28. Qxc6 {[%clk 0:02:04.1]} 28... g6
{[%clk 0:00:03.3]} 29. Qxa6 {[%clk 0:02:04.6]} 1

[Event "Open Nuevo Centro. Jornada 1"]
[Site "Chess.com"]
[Date "2020.06.19"]
[Round "9"]
[White "Hern�ndez Tom�s, Efr�n"]
[Black "M�s Ripoll, Vicente"]
[Result "1-0"]
[WhiteElo "1004"]
[BlackElo "1024"]
[TimeControl "180+2"]
[EndTime "12:12:48 PDT"]
[Termination "Victoria de EfrenHT10 por tiempo"]

1. e4 {[%clk 0:03:01.9]} 1... c5 {[%clk 0:03:00.5]} 2. Nf3 {[%clk 0:03:02.7]}
2... Nc6 {[%clk 0:02:57.8]} 3. Bc4 {[%clk 0:03:02.5]} 3... h6 {[%clk 0:02:56.1]}
4. d4 {[%clk 0:03:02.4]} 4... cxd4 {[%clk 0:02:56.6]} 5. Nxd4 {[%clk 0:03:02.7]}
5... Nxd4 {[%clk 0:02:57.4]} 6. Qxd4 {[%clk 0:03:02.7]} 6... Qc7 {[%clk
0:02:50.1]} 7. Qd5 {[%clk 0:03:00.7]} 7... Nf6 {[%clk 0:02:47.4]} 8. Qxf7+
{[%clk 0:02:58.7]} 8... Kd8 {[%clk 0:02:47.9]} 9. Bd5 {[%clk 0:02:38.4]} 9... e6
{[%clk 0:02:31.8]} 10. Bb3 {[%clk 0:02:27.2]} 10... Nxe4 {[%clk 0:02:22.3]} 11.
Qf3 {[%clk 0:02:25.3]} 11... Nc5 {[%clk 0:02:08.3]} 12. Nc3 {[%clk 0:02:18.9]}
12... Bd6 {[%clk 0:01:59.9]} 13. Nb5 {[%clk 0:02:06]} 13... Qc6 {[%clk
0:01:54.2]} 14. Qxc6 {[%clk 0:02:04.5]} 14... bxc6 {[%clk 0:01:48.4]} 15. Nxd6
{[%clk 0:02:04.9]} 15... Ke7 {[%clk 0:01:48.2]} 16. Nxc8+ {[%clk 0:02:04.9]}
16... Raxc8 {[%clk 0:01:47.3]} 17. Be3 {[%clk 0:02:05.1]} 17... Ne4 {[%clk
0:01:42.9]} 18. f3 {[%clk 0:02:02.2]} 18... Nf6 {[%clk 0:01:37.2]} 19. Bxa7
{[%clk 0:01:59.7]} 19... d5 {[%clk 0:01:30.6]} 20. Bc5+ {[%clk 0:01:57.8]} 20...
Kd7 {[%clk 0:01:19.6]} 21. O-O {[%clk 0:01:58]} 21... Ra8 {[%clk 0:01:16.5]} 22.
c4 {[%clk 0:01:52.8]} 22... Ra5 {[%clk 0:01:16.6]} 23. Bb6 {[%clk 0:01:48.6]}
23... Ra6 {[%clk 0:01:14.4]} 24. Bd4 {[%clk 0:01:43.8]} 24... Ne8 {[%clk
0:01:07.7]} 25. cxd5 {[%clk 0:01:41.2]} 25... cxd5 {[%clk 0:01:03.5]} 26. Bc2
{[%clk 0:01:31.4]} 26... g5 {[%clk 0:01:00.9]} 27. Bxh8 {[%clk 0:01:29.8]} 1